bitfinex/quotes_ETHUSD_20250115
["timestamp","ask_amount","ask_price","bid_price","bid_amount"]
[1736950234275,0.23663505,3306.8,3305.6,0.55]
[1736950234479,0.23663505,3306.8,3305.0,0.33455625]
[1736950234480,3.02378,3307.2,3306.2,0.55]
[1736950234780,3.02353,3307.4,3306.4,0.55]
[1736950234963,3.02372,3307.2,3306.4,0.55]
[1736950235284,0.0302599,3307.1,3306.6,0.55]
[1736950235463,0.0302599,3307.3,3306.8,0.55]
[1736950235651,0.30537899,3307.2,3306.8,0.55]
[1736950235850,0.0302599,3307.1,3307.0,0.55]
[1736950236255,0.0302599,3307.1,3307.0,0.61647235]
[1736950236869,0.0302599,3307.2,3307.0,0.61647235]
[1736950237069,3.0539799,3307.2,3307.0,0.61647235]
[1736950237256,3.35937789,3307.2,3307.0,0.61647235]
[1736950237474,3.35937789,3307.2,3306.7,1.3492]
[1736950237667,3.35937789,3307.2,3306.8,0.55]
[1736950237863,0.33565789,3307.2,3306.8,0.61648073]
[1736950238063,0.0302599,3307.2,3306.8,0.61648073]
[1736950238985,3.02347,3307.5,3306.8,0.61648073]
[1736950239282,3.02268,3308.4,3307.3,3.57359]
[1736950239480,0.0302599,3308.9,3307.5,0.55]
[1736950239645,0.31306286,3309.0,3307.8,1.3038]
[1736950239841,0.16596629,3308.9,3308.1,0.55]
[1736950240253,0.16596629,3308.9,3308.0,3.02295]
[1736950240254,0.0302599,3308.8,3308.3,0.55]
[1736950240684,3.02173,3309.4,3308.3,0.55]
[1736950240685,1.3466,3309.6,3308.6,1.3038]
[1736950240883,1.3466,3309.9,3308.6,1.3038]
[1736950241090,3.02151,3309.6,3308.7,0.06640111]
[1736950241389,0.3324109,3309.5,3308.7,0.06640111]
[1736950241565,3.3540209,3309.5,3308.7,0.06640111]
[1736950241988,0.0302599,3309.4,3308.7,0.06640111]
[1736950242670,0.302151,3309.5,3308.7,3.11893107]
[1736950242872,3.02078,3310.4,3309.1,3.02194]
[1736950243087,0.0302599,3310.5,3309.2,0.06552157]
[1736950243259,3.02078,3310.4,3309.2,0.06552157]
[1736950243468,3.02092,3310.3,3309.2,0.06552157]
[1736950243666,3.0,3310.2,3309.2,0.06552157]
[1736950243977,0.602092,3310.1,3309.2,0.06552157]
[1736950244173,0.0302599,3310.0,3309.3,0.55]
[1736950244503,0.0302599,3310.0,3309.4,4.32547]
[1736950244658,0.0302599,3310.4,3309.4,4.32547]
[1736950244864,0.0302599,3310.4,3309.5,0.06550901]
[1736950245070,0.30509599,3310.3,3309.5,0.06550901]
[1736950245277,0.0302599,3310.2,3309.5,0.06550901]
[1736950246089,3.02097,3310.2,3309.5,0.06550901]
[1736950246500,0.0302599,3310.1,3309.5,0.06550901]
[1736950246655,3.02151,3309.6,3309.5,0.06550901]
[1736950246822,0.302151,3309.6,3309.5,0.06550901]
[1736950247024,3.02125,3309.9,3309.0,1.3038]
[1736950247247,1.3466,3310.1,3309.5,0.06486959]
[1736950247458,6.0514599,3310.0,3309.0,1.3038]
[1736950247767,3.0,3310.0,3309.1,0.06488633]
[1736950247921,0.0302599,3309.9,3309.1,3.08682633]
[1736950248131,3.0,3310.2,3309.3,4.32557]
[1736950248343,0.6323509,3310.1,3309.3,4.32557]
[1736950248517,3.6534309,3310.1,3309.4,0.06398859]
[1736950248713,3.02114,3310.0,3309.4,0.06398859]
[1736950249030,0.0302599,3309.9,3309.4,0.06398859]
[1736950249232,3.02133,3309.8,3309.4,0.06398859]
[1736950249435,0.33541889,3309.7,3309.3,1.3038]
[1736950249624,0.0302599,3309.7,3309.0,1.5057]
[1736950249822,3.0215,3309.7,3309.4,0.06379688]
[1736950250027,0.0302599,3309.6,3309.0,1.2377]
[1736950250206,3.02151,3309.6,3308.6,1.2377]
[1736950250412,3.02196,3309.2,3309.1,0.06392127]
[1736950250609,3.02196,3309.2,3308.6,1.2377]
[1736950250610,3.02205,3309.1,3308.6,1.2377]
[1736950250844,3.0523299,3309.0,3308.6,1.2377]
[1736950251069,3.0523299,3309.0,3308.7,0.06394335]
[1736950251230,3.02224,3308.8,3308.7,0.06394335]
[1736950251549,3.02215,3308.9,3308.7,0.06413508]
[1736950251736,3.02215,3308.9,3308.2,1.2377]
[1736950251737,3.35774089,3308.8,3308.2,1.2377]
[1736950251933,3.0526699,3308.7,3308.2,1.2377]
[1736950252110,0.0302599,3308.7,3308.2,1.2377]
[1736950252315,0.0302599,3308.7,3308.0,10.0]
[1736950252511,3.02276,3308.3,3308.0,10.0]
[1736950252727,0.3325359,3308.2,3308.0,10.0]
[1736950253351,3.0,3308.5,3308.0,10.0]
[1736950253547,4.2342,3308.8,3308.0,10.0]
[1736950253726,3.0,3308.5,3308.0,10.0]
[1736950253965,3.0227,3308.3,3308.0,10.0]
[1736950254128,0.0302599,3308.2,3308.0,10.0]
[1736950254325,0.30529599,3308.1,3308.0,10.0]
[1736950254525,6.02251,3308.6,3308.0,10.0]
[1736950254768,4.25604,3309.3,3308.0,10.0]
[1736950255056,3.02268,3308.4,3308.0,10.0]
[1736950255219,3.02215,3308.9,3308.0,10.0]
[1736950255220,3.0530199,3308.3,3308.0,10.0]
[1736950255424,3.02281,3308.2,3308.0,10.0]
[1736950255732,0.33556689,3308.1,3308.0,10.0]
[1736950256364,3.02248,3308.6,3308.0,10.0]
[1736950256532,3.02288,3308.1,3308.0,10.0]
[1736950256925,3.0,3309.0,3308.0,10.0]
[1736950257128,3.0302599,3309.0,3308.0,10.0]
[1736950257478,3.02288,3308.1,3308.0,9.95]
[1736950257753,3.325168,3308.1,3308.0,10.0141644]
[1736950258315,6.325168,3308.1,3308.0,10.0141644]
[1736950261064,4.29622,3308.9,3308.0,10.0141644]
[1736950261220,3.324146,3309.2,3308.0,9.95]
[1736950261420,0.302196,3309.2,3308.2,1.3372]
[1736950261622,1.274,3309.3,3308.2,1.36742582]
[1736950261933,3.02206,3309.0,3308.3,0.06489244]
[1736950262128,0.0302599,3308.9,3308.3,0.06489244]
[1736950262330,3.02244,3308.6,3308.3,0.06489244]
[1736950262544,0.0302599,3308.5,3308.3,0.06489244]
[1736950262744,0.30526999,3308.4,3308.3,0.06489244]
[1736950262943,3.02171,3309.4,3308.4,3.0226]
[1736950263154,1.274,3309.7,3308.5,3.05272495]
[1736950263321,4.2955,3309.7,3308.6,1.3372]
[1736950263522,3.0513399,3310.1,3309.1,3.02192]
[1736950263727,0.30513399,3310.0,3309.3,1.3372]
[1736950263948,0.30513399,3310.0,3309.4,0.06484637]
[1736950264262,3.0216,3309.5,3309.4,0.06484637]
[1736950264563,3.0221,3309.0,3308.3,1.3372]
[1736950264860,4.29537,3309.8,3308.3,1.3372]
[1736950264861,0.0302599,3308.9,3308.3,1.3372]
[1736950265065,0.0302599,3309.5,3308.3,1.3372]
[1736950265278,3.02229,3308.8,3308.0,9.95]
[1736950265560,3.0225,3308.6,3308.0,9.95]
[1736950265762,0.0302599,3308.5,3308.0,9.95]
[1736950265935,3.02264,3308.4,3308.0,9.95]
[1736950266143,0.0302599,3308.3,3308.0,9.95]
[1736950266693,0.302229,3308.7,3308.0,9.95]
[1736950266965,0.0302599,3308.7,3308.0,9.95]
[1736950267123,0.0302599,3309.2,3308.1,4.25617]
[1736950267522,3.0302599,3309.2,3308.2,3.02275]
[1736950267925,0.0302599,3309.2,3308.1,1.26352394]
[1736950268131,1.2737,3310.0,3308.4,1.2333]
[1736950268344,1.2737,3310.0,3309.1,1.2333]
[1736950268345,3.02122,3310.0,3309.1,1.2333]
[1736950268631,3.0,3309.9,3309.1,1.2333]
[1736950268850,0.0302599,3309.8,3309.1,1.2333]
[1736950269053,3.02105,3310.1,3309.1,1.2333]
[1736950269252,0.30513099,3310.0,3309.1,1.2333]
[1736950269441,3.02099,3310.2,3309.2,3.02183]
[1736950269841,1.2737,3310.3,3309.1,1.2333]
[1736950269842,3.02118,3310.0,3309.1,1.2333]
[1736950270046,3.02139,3309.8,3309.1,1.2333]
[1736950270242,0.0302599,3309.7,3309.1,1.2333]
[1736950270448,3.02143,3309.7,3309.1,1.2333]
[1736950270767,3.0217,3309.4,3309.2,0.06468431]
[1736950270938,3.02197,3309.1,3308.8,1.2333]
[1736950271138,0.0302599,3309.0,3308.9,0.06379652]
[1736950271370,0.0302599,3309.0,3308.4,1.2333]
[1736950271371,3.0523999,3309.0,3308.4,1.2333]
[1736950271555,3.02259,3308.5,3308.0,10.217]
[1736950271729,0.3325189,3308.4,3308.0,11.1833]
[1736950271936,0.0302599,3308.4,3308.0,11.1833]
[1736950272130,0.0302599,3308.7,3308.0,11.1833]
[1736950272335,3.02288,3308.1,3308.0,9.95]
[1736950272557,3.0,3308.2,3308.0,9.95]
[1736950272934,3.0530699,3308.2,3308.0,9.95]
[1736950273129,0.30530699,3308.1,3308.0,9.95]
[1736950273479,3.02226,3308.8,3308.0,9.95]
[1736950273774,3.0,3308.9,3308.1,4.25609]
[1736950273978,0.0302599,3308.7,3308.1,4.25609]
[1736950274367,0.0302599,3308.7,3308.1,1.2333]
[1736950274574,0.0302599,3308.8,3308.1,1.2333]
[1736950275169,3.0,3308.8,3308.1,1.2333]
[1736950275337,0.6324749,3308.7,3308.1,1.2333]
[1736950276368,0.6324749,3308.7,3308.2,0.06170443]
[1736950276569,0.0302599,3308.7,3308.2,0.06170443]
[1736950276748,0.0302599,3308.9,3308.2,0.06170443]
[1736950276950,3.0,3309.2,3308.2,0.06170443]
[1736950277262,3.0,3309.0,3308.2,0.06170443]
[1736950277457,0.0302599,3308.9,3308.2,0.06170443]
[1736950277802,0.63548589,3308.9,3308.2,0.06170443]
[1736950278150,0.0302599,3308.9,3308.2,0.06170443]
[1736950279015,3.02207,3309.0,3308.2,0.06170443]
[1736950279209,0.0302599,3308.9,3308.2,0.06170443]
[1736950280315,3.02173,3309.4,3308.3,3.02269]
[1736950280581,3.0520499,3309.3,3308.4,1.40739605]
[1736950280750,0.30520499,3309.2,3308.4,1.40739605]
[1736950280951,0.0302599,3309.1,3308.4,1.40739605]
[1736950281157,3.0519499,3309.4,3308.4,1.40739605]
[1736950281362,3.02245,3308.6,3308.4,0.06169605]
[1736950281556,0.0302599,3308.5,3308.4,0.06169605]
[1736950281757,0.0302599,3308.5,3308.1,1.3457]
[1736950281974,3.02245,3308.6,3308.4,0.06169605]
[1736950282163,0.3325049,3308.5,3308.1,1.3457]
[1736950282372,1.3151599,3309.4,3308.1,1.3457]
[1736950282573,3.02174,3309.4,3308.4,4.36829]
[1736950282890,3.0,3309.3,3308.4,4.36829]
[1736950283549,3.9053522,3309.6,3308.4,1.3457]
[1736950283749,0.9053522,3309.6,3308.4,1.3457]
[1736950283987,0.9053522,3309.6,3308.6,3.02238]
[1736950283988,3.6247592,3309.6,3308.6,3.02238]
[1736950284232,0.6032092,3309.6,3308.9,3.02211]
[1736950284405,0.6032092,3309.6,3308.9,0.03021837]
[1736950284731,0.0302599,3309.5,3308.8,1.3457]
[1736950285504,3.0,3309.4,3308.8,1.3457]
[1736950285697,0.63544789,3309.3,3308.8,1.3457]
[1736950286129,3.65724789,3309.3,3308.8,1.3457]
[1736950286335,0.63544789,3309.3,3308.8,1.3457]
[1736950286629,0.60518799,3309.3,3308.8,1.3457]
[1736950286808,3.6032092,3309.6,3308.8,1.3457]
[1736950287008,0.6032092,3309.6,3308.8,4.3679]
[1736950287234,0.0302599,3309.5,3308.8,4.3679]
[1736950287391,3.0519499,3309.5,3308.8,1.3457]
[1736950287841,3.0302599,3309.5,3308.8,1.3457]
[1736950288046,1.2849,3309.3,3308.4,1.3457]
[1736950288219,3.02225,3308.8,3308.4,1.3457]
[1736950288413,0.0302599,3308.7,3308.5,0.0621606]
[1736950288611,3.0,3308.8,3308.5,0.0621606]
[1736950288838,0.0302599,3308.7,3308.5,0.0621606]
[1736950289013,1.2849,3309.3,3308.5,0.0621606]
[1736950289014,3.02242,3308.6,3308.5,0.0621606]
[1736950289209,3.324662,3308.6,3308.0,11.2957]
[1736950289427,3.0527799,3308.5,3308.0,11.2957]
[1736950289926,3.02263,3308.4,3308.0,11.2957]
[1736950290216,0.0302599,3308.3,3308.0,9.95]
[1736950290415,3.0,3308.3,3308.0,9.95]
[1736950290616,0.602265,3308.2,3308.0,9.95]
[1736950290836,3.0,3308.5,3308.0,9.95]
[1736950291242,0.0302599,3308.4,3308.1,0.05860109]
[1736950291445,3.02279,3308.2,3308.1,0.05860109]
[1736950292464,6.02279,3308.2,3308.1,0.05860109]
[1736950292620,6.0530499,3308.2,3308.1,0.05860109]
[1736950292822,3.02288,3308.1,3308.0,9.95]
[1736950293347,3.02288,3308.1,3308.0,10.00302112]
[1736950293547,3.73379499,3308.2,3308.0,10.00302112]
[1736950293752,1.2849,3308.6,3308.0,10.00302112]
[1736950293948,3.02258,3308.5,3308.0,10.00302112]
[1736950294151,3.0,3308.4,3308.0,10.00302112]
[1736950294452,0.6069231,3308.3,3308.1,1.244]
[1736950294752,4.73315923,3309.4,3308.2,3.07576274]
[1736950294913,3.0,3308.9,3308.2,0.05301274]
[1736950295113,0.0302599,3308.8,3308.2,0.05301274]
[1736950295458,0.60419592,3309.3,3308.2,0.05301274]
[1736950295459,3.0227,3308.3,3308.2,0.05301274]
[1736950295951,6.02288,3308.1,3308.0,9.95]
[1736950296941,3.0,3308.1,3308.0,9.95]
[1736950298319,3.602272,3308.1,3308.0,9.95]
[1736950299550,3.02265,3308.4,3308.0,9.95]
[1736950299875,0.60095403,3308.6,3308.0,9.95]
[1736950300023,3.0302599,3308.5,3308.0,9.95]
[1736950300875,3.02279,3308.2,3308.0,9.95]
[1736950301155,0.0302599,3308.1,3308.0,9.95]
[1736950301329,6.35844489,3308.1,3308.0,9.95]
[1736950301532,6.32818499,3308.1,3308.0,9.95]
[1736950303261,6.87818499,3308.1,3308.0,9.95]
[1736950305372,6.87818499,3308.1,3308.0,9.43695937]
[1736950305571,6.87818499,3308.1,3308.0,7.92546937]
[1736950305776,3.02391,3307.0,3306.7,1.244]
[1736950306074,3.0302599,3306.9,3306.0,1.51]
[1736950306277,3.0302599,3306.8,3306.0,1.244]
[1736950306631,3.0302599,3306.8,3305.9,0.2504]
[1736950306632,6.0248,3306.0,3305.9,0.2504]
[1736950306940,3.0,3306.0,3305.9,0.2504]
[1736950307143,6.0248,3306.0,3305.9,0.2504]
[1736950307345,3.0,3306.0,3305.9,0.2504]
[1736950307898,3.02437,3306.5,3305.9,0.2504]
[1736950308396,0.0302599,3306.4,3305.9,0.2504]
[1736950308694,0.0302599,3306.8,3306.0,1.244]
[1736950308839,0.0302599,3306.8,3306.0,4.2688]
[1736950309040,1.3088,3307.5,3306.1,0.03024422]
[1736950309352,3.02344,3307.5,3306.5,3.02429]
[1736950309554,3.02344,3307.5,3306.6,1.244]
[1736950309755,3.38721472,3307.5,3306.6,1.244]
[1736950309951,3.0,3307.4,3306.6,1.244]
[1736950310278,0.0302599,3307.3,3306.6,1.244]
[1736950310521,3.02377,3307.2,3306.6,1.244]
[1736950310786,0.32899845,3307.1,3306.6,1.244]
[1736950311090,3.0,3307.0,3306.6,1.244]
[1736950311375,0.0302599,3306.9,3306.6,1.244]
[1736950311940,3.0302599,3307.0,3306.6,1.244]
[1736950312144,0.0302599,3307.0,3306.0,1.3086]
[1736950312403,3.0302599,3307.4,3306.1,0.04371482]
[1736950312700,3.0,3306.9,3306.1,0.04371482]
[1736950312982,3.0,3306.9,3306.2,0.04371062]
[1736950313278,0.0302599,3306.8,3306.0,1.3086]
[1736950313477,0.0302599,3306.8,3306.3,0.04370643]
[1736950313478,3.0543999,3306.8,3306.3,0.04370643]
[1736950313685,0.0302599,3306.8,3306.0,1.3086]
[1736950313845,0.0302599,3306.8,3306.4,0.04370224]
[1736950314045,0.0302599,3306.8,3306.0,1.3086]
[1736950314576,0.0302599,3306.8,3306.1,0.04371482]
[1736950314779,0.55,3307.1,3306.1,0.04371482]
[1736950314966,0.38828589,3307.0,3306.1,0.04371482]
[1736950315167,3.0,3306.6,3306.1,0.04371482]
[1736950315366,3.0,3306.3,3305.9,0.2504]
[1736950315568,0.0302599,3306.2,3306.0,0.04371901]
[1736950315776,3.0,3306.4,3306.0,0.04371901]
[1736950316147,0.0302599,3306.3,3306.0,0.04371901]
[1736950317397,0.33572989,3306.3,3306.0,0.04371901]
[1736950317601,0.33572989,3306.3,3305.9,0.2504]
[1736950317602,3.0,3306.0,3305.9,0.2504]
[1736950317747,6.0550599,3306.0,3305.9,0.2504]
[1736950319785,6.6050599,3306.0,3305.9,0.2504]
[1736950319984,6.5748,3306.0,3305.9,0.2504]
[1736950320187,7.665681,3306.0,3305.9,0.2504]
[1736950322269,7.665681,3306.0,3305.9,1e-05]
[1736950322568,8.974981,3306.0,3305.9,1e-05]
[1736950324028,8.974981,3306.0,3304.5,1.3086]
[1736950324029,3.02572,3305.0,3304.5,1.3086]
[1736950324171,0.0302599,3304.9,3304.5,1.3086]
[1736950325020,6.27079495,3306.0,3304.5,1.3086]
[1736950325021,3.02496,3305.9,3304.8,3.02581]
[1736950325162,3.02496,3305.9,3304.9,3.0258]
[1736950325485,1.3109,3306.9,3305.1,1.2409]
[1736950325794,3.02409,3306.8,3305.4,1.2409]
[1736950325995,1.3109,3306.9,3305.6,1.2409]
[1736950326168,3.02389,3307.0,3306.2,1.2409]
[1736950326572,1.3109,3307.3,3306.3,3.02452]
[1736950326767,1.3109,3307.3,3306.4,3.0244]
[1736950326973,3.0,3307.2,3306.2,4.29568465]
[1736950327195,3.02317,3307.8,3306.8,3.02407]
[1736950327367,3.02317,3307.8,3306.9,4.26485]
[1736950327573,3.8416785,3308.0,3307.0,3.02383]
[1736950327768,0.0302599,3307.9,3306.9,1.2409]
[1736950327981,3.0533199,3307.9,3306.9,4.26485]
[1736950328497,0.0302599,3307.9,3307.0,3.02388]
[1736950328699,0.39510077,3307.9,3306.9,1.2409]
[1736950328893,0.0302599,3307.8,3307.2,3.02368]
[1736950329101,0.0302599,3308.0,3307.0,3.02387]
[1736950329299,0.0302599,3308.0,3307.1,3.02371]
[1736950331585,6.0532699,3308.0,3306.9,4.26486]
[1736950331783,6.0532699,3308.0,3306.9,1.667386]
[1736950331994,6.0532699,3308.0,3307.0,3.02385]
[1736950332393,3.0532699,3308.0,3307.0,3.02385]
[1736950333615,3.0302599,3308.0,3307.1,3.02379]
[1736950334601,0.0302599,3308.0,3307.0,3.02388]
[1736950334806,0.0302599,3308.0,3307.2,3.02366]
[1736950335377,3.0302599,3308.0,3307.1,0.426478]
[1736950335716,3.0302599,3308.0,3307.0,3.02387]
[1736950335717,3.0532599,3308.0,3307.0,3.02387]
[1736950335920,3.0,3307.9,3307.0,3.05410376]
[1736950336080,0.0302599,3307.8,3307.0,3.05410376]
[1736950336410,0.0302599,3307.8,3307.1,0.04065086]
[1736950336614,0.33559389,3307.8,3306.9,1.2409]
[1736950336911,0.33559389,3307.8,3307.2,0.04064666]
[1736950337209,0.33559389,3307.8,3307.3,0.04064247]
[1736950337408,3.33559389,3307.8,3306.9,4.26479]
[1736950337614,3.33559389,3307.8,3307.4,0.04063828]
[1736950337815,0.63587039,3307.7,3307.0,3.02387]
[1736950337987,0.0302599,3307.8,3307.5,0.04058621]
[1736950338194,0.0302599,3307.9,3307.0,3.02387]
[1736950338395,0.0302599,3307.9,3307.6,0.04058202]
[1736950338712,0.0302599,3307.9,3307.0,3.02387]
[1736950338913,0.0302599,3307.9,3307.7,0.04057783]
[1736950339117,0.30532699,3307.8,3306.9,1.2409]
[1736950339419,0.30532699,3307.8,3306.5,1.3524]
[1736950339420,3.02374,3307.2,3306.5,1.3524]
[1736950339619,0.0302599,3307.1,3306.5,1.3524]
[1736950339807,3.0,3306.8,3305.8,4.37737]
[1736950340003,0.0302599,3306.7,3305.8,4.37737]
[1736950340208,1.2682,3307.0,3306.2,3.0246]
[1736950340406,3.02324,3307.7,3306.5,1.3524]
[1736950340717,3.02323,3307.8,3306.7,3.02416]
[1736950340878,0.0302599,3307.7,3306.5,4.37671]
[1736950341216,3.0,3307.3,3306.5,1.3524]
[1736950341388,0.0302599,3307.2,3306.5,1.3524]
[1736950342198,3.0,3307.5,3306.5,4.40696828]
[1736950342407,0.0302599,3307.4,3306.5,4.40696828]
[1736950342715,0.0302599,3307.4,3306.5,1.38263828]
[1736950342895,3.0,3307.5,3306.6,3.02417]
[1736950343079,1.2984599,3307.4,3306.3,8.87]
[1736950343286,6.02398,3306.9,3306.2,0.265]
[1736950343490,0.6326579,3306.8,3306.0,1.3524]
[1736950343697,3.02434,3306.5,3306.0,1.3524]
[1736950343896,0.0302599,3306.4,3305.6,1.3524]
[1736950344110,0.0302599,3306.4,3305.4,0.265]
[1736950344111,3.0,3306.3,3305.4,0.265]
[1736950344328,3.02509,3305.7,3305.4,0.265]
[1736950344530,0.0302599,3305.6,3305.4,0.265]
[1736950345120,3.02526,3305.5,3304.9,1.3524]
[1736950345317,3.33072499,3305.6,3304.9,1.3524]
[1736950345997,0.30553499,3305.6,3304.9,1.3524]
[1736950346198,3.02499,3305.8,3304.9,1.3524]
[1736950346399,0.0302599,3305.7,3304.9,1.3524]
[1736950346621,3.02499,3305.8,3304.9,1.38265318]
[1736950346808,1.2682,3306.0,3304.9,1.38265318]
[1736950346809,4.29303,3306.0,3304.9,1.38265318]
[1736950347017,1.2682,3306.0,3304.9,1.38265318]
[1736950347235,0.0302599,3305.9,3304.9,1.3524]
[1736950347434,3.0,3305.6,3304.9,1.3524]
[1736950347754,3.0302599,3305.6,3304.9,1.3524]
[1736950348182,4.2682,3306.0,3304.9,1.38265437]
[1736950348359,3.0,3305.6,3304.9,1.3524]
[1736950348516,3.0,3305.6,3304.4,3.02623]
[1736950348517,3.0,3305.2,3304.3,1.3524]
[1736950348717,3.02523,3305.6,3304.4,0.03025859]
[1736950349050,6.02504,3305.8,3304.4,0.03025859]
[1736950349252,3.02542,3305.4,3304.4,3.05650859]
[1736950349559,0.302542,3305.4,3304.5,3.02614]
[1736950349718,3.0,3305.3,3304.5,3.02614]
[1736950349914,3.0302599,3305.3,3304.5,3.02614]
[1736950350113,3.0302599,3305.3,3304.5,3.05639647]
[1736950350318,3.0302599,3305.3,3304.2,0.0980732]
[1736950350319,1.2682,3305.2,3304.2,0.0980732]
[1736950350536,3.02576,3305.0,3304.2,0.0980732]
[1736950350718,3.0560699,3304.9,3304.2,0.0980732]
[1736950351365,0.43242199,3305.0,3304.3,0.0353514]
[1736950351502,3.02566,3305.1,3304.4,1.3524]
[1736950351503,0.0302599,3305.1,3304.4,1.3524]
[1736950351704,4.2682,3305.2,3304.5,0.03025821]
[1736950351928,3.0,3305.2,3304.5,0.06560121]
[1736950352206,3.0558299,3305.2,3304.5,0.035343]
[1736950352607,3.02565,3305.1,3304.5,0.035343]
[1736950352801,3.02571,3305.0,3304.5,0.035343]
[1736950353039,0.30559099,3305.1,3304.5,0.035343]
[1736950353341,3.02597,3304.8,3304.5,0.035343]
[1736950353517,3.0562599,3304.7,3304.5,0.035343]
[1736950353838,3.0562599,3304.7,3304.2,0.0980732]
[1736950354041,0.33588589,3304.7,3304.2,0.0980732]
[1736950354219,3.02611,3304.6,3304.2,0.0980732]
[1736950354428,3.0564799,3304.5,3304.3,0.0353514]
[1736950354614,3.0564799,3304.5,3304.2,0.0980732]
[1736950354832,3.0564799,3304.5,3304.3,0.0353514]
[1736950355014,3.02626,3304.4,3304.3,0.0353514]
[1736950355214,3.33191199,3304.4,3304.2,0.0980732]
[1736950355439,3.0566099,3304.3,3304.2,0.0980732]
[1736950355948,0.30565199,3304.4,3304.2,0.0980732]
[1736950356132,1.3564,3304.8,3304.2,0.0980732]
[1736950356337,0.0302599,3304.6,3304.2,0.0980732]
[1736950356842,1.3564,3304.8,3304.2,0.0980732]
[1736950356843,0.0302599,3304.7,3304.2,0.0980732]
[1736950357030,3.02635,3304.3,3304.2,0.0980732]
[1736950357223,3.328985,3304.3,3304.2,0.0980732]
[1736950357541,6.328985,3304.3,3304.2,0.0980732]
[1736950358104,0.91014881,3305.1,3304.2,0.0980732]
[1736950358343,1.3622,3305.3,3304.4,3.02623]
[1736950358545,1.3622,3305.3,3304.5,3.05641788]
[1736950358839,0.0302599,3305.4,3304.5,3.05641788]
[1736950359044,3.0556299,3305.4,3304.4,0.264]
[1736950359240,3.02549,3305.3,3304.4,0.264]
[1736950359491,0.0302599,3305.2,3304.4,0.264]
[1736950359739,0.0302599,3305.2,3304.3,4.30142]
[1736950359945,0.0302599,3305.2,3304.3,4.56542]
[1736950359946,3.0558099,3305.2,3304.3,4.56542]
[1736950360109,3.02573,3305.0,3304.3,1.5391]
[1736950360310,0.0302599,3304.9,3304.3,1.5391]
[1736950360867,3.02591,3304.8,3304.3,1.5391]
[1736950361024,3.0,3304.6,3304.2,0.0980732]
[1736950361343,1.3622,3305.0,3304.4,0.03564391]
[1736950361660,1.3622,3305.0,3304.2,0.0980732]
[1736950361661,3.0,3304.7,3304.2,0.0980732]
[1736950361862,0.43924599,3304.9,3304.2,0.0980732]
[1736950362163,0.46950589,3304.9,3304.2,0.0980732]
[1736950362446,3.02626,3304.4,3304.3,0.03332884]
[1736950362624,6.02626,3304.4,3304.3,0.03332884]
[1736950362806,6.02635,3304.3,3304.2,0.0980732]
[1736950363227,7.38855,3304.3,3304.2,0.0980732]
[1736950364850,3.02635,3304.3,3304.2,0.0980732]
[1736950365030,3.328985,3304.3,3304.2,0.0980732]
[1736950365229,3.3592449,3304.3,3304.2,0.0980732]
[1736950366122,3.328985,3304.3,3304.2,0.0980732]
[1736950366856,7.691185,3304.3,3304.2,3.2e-06]
[1736950367023,8.15413616,3304.3,3304.2,3.2e-06]
[1736950367429,7.691185,3304.3,3304.2,3.2e-06]
[1736950367783,7.38855,3304.3,3304.2,3.2e-06]
[1736950368120,7.85150116,3304.3,3304.2,3.2e-06]
[1736950369146,8.29204923,3304.3,3304.2,3.2e-06]
[1736950369349,8.29204923,3304.3,3303.1,0.005]
[1736950369350,3.02736,3303.2,3303.1,0.005]
[1736950369545,6.0576199,3303.2,3303.1,0.005]
[1736950369745,6.80020189,3303.2,3303.1,0.03668552]
[1736950369948,6.76994199,3303.2,3303.1,0.005]
[1736950371024,8.13814199,3303.2,3303.1,0.005]
[1736950372025,8.60109315,3303.2,3303.1,1e-05]
[1736950372437,8.60109315,3303.2,3301.5,1.2518]
[1736950372438,3.0,3301.9,3301.5,1.2518]
[1736950372723,0.0302599,3301.8,3301.5,1.2518]
[1736950373131,0.0302599,3301.8,3300.9,0.1678134]
[1736950373337,3.02907,3301.4,3300.9,0.1178134]
[1736950373537,3.02915,3301.3,3300.9,0.1178134]
[1736950373952,0.0302599,3301.6,3300.9,0.1178134]
[1736950374146,6.02903,3301.4,3300.9,0.1178134]
[1736950374346,3.0589899,3301.8,3300.9,0.1178134]
[1736950374533,6.02883,3301.6,3300.9,0.1178134]
[1736950374749,1.3682,3301.4,3300.9,0.1178134]
[1736950374936,7.39758,3301.0,3300.9,0.1178134]
[1736950375336,6.02938,3301.0,3300.9,0.1178134]
[1736950375558,6.0596399,3301.0,3300.9,0.1178134]
[1736950375861,6.66560389,3301.0,3300.9,0.1178134]
[1736950376167,6.63534399,3301.0,3300.9,0.1178134]
[1736950376538,6.63534399,3301.0,3300.9,3.4e-06]
[1736950376737,8.00354399,3301.0,3300.9,3.4e-06]
[1736950376954,8.46649515,3301.0,3300.9,3.4e-06]
[1736950377155,3.0,3300.9,3300.2,1.213952]
[1736950377352,3.03038,3300.0,3299.4,1.2518]
[1736950377542,0.0302599,3299.9,3298.6,1.2518]
[1736950377744,3.0,3299.6,3298.7,0.03030917]
[1736950378291,3.03096,3299.3,3298.6,1.2518]
[1736950378689,3.03127,3299.0,3298.1,0.005]
[1736950378858,0.0302599,3298.9,3298.2,1.2518]
[1736950379188,3.0,3298.4,3298.1,0.005]
[1736950379507,3.0620299,3298.4,3298.1,0.005]
[1736950379699,3.03177,3298.4,3298.1,0.005]
[1736950379915,3.0,3298.8,3298.1,0.005]
[1736950379916,3.03165,3298.6,3298.1,0.005]
[1736950380205,4.39929,3299.2,3298.1,0.005]
[1736950380354,3.03155,3298.7,3298.1,0.005]
[1736950380552,3.03125,3299.0,3298.1,0.005]
[1736950381094,1.3682,3299.7,3298.3,0.55]
[1736950381404,0.14807494,3300.2,3298.2,0.02748456]
[1736950381405,3.03155,3298.7,3298.2,0.02748456]
[1736950381613,3.0,3298.2,3298.1,0.005]
[1736950381755,3.03179,3298.4,3298.1,0.005]